fUST/lending_fUST_20260213
["ID","MTS","AMOUNT","RATE_DAILY","PERIOD"]
[405294555,1770955840271,-603.20247117,0.00035616,5]
[405294556,1770955840281,-1248.0,0.00035616,5]
[405294557,1770955840293,-554.659782,0.00035616,31]
[405294558,1770955840303,-554.659782,0.00035616,31]
[405294559,1770955840312,-554.659782,0.00035616,31]
[405294560,1770955840323,-554.659785,0.00035616,31]
[405294561,1770955840333,-509.6162006,0.00035616,5]
[405294562,1770955840486,-500.0,0.00035616,120]
[405294563,1770955840501,-500.0,0.00035616,5]
[405294564,1770955840512,-657.75,0.00035616,5]
[405294565,1770955840522,-1000.0,0.00035616,2]
[405294566,1770955840532,-500.0,0.00035616,5]
[405294567,1770955840542,-899.91,0.00035616,5]
[405294568,1770955840553,-2067.28,0.00035616,5]
[405294569,1770955840563,-444.62745946,0.00035616,5]
[405294570,1770955840573,-530.52,0.00035616,5]
[405294571,1770955840582,-520.23,0.00035616,5]
[405294572,1770955840591,-1649.59,0.00035616,5]
[405294573,1770955840600,-500.0,0.00035616,5]
[405294574,1770955840609,-500.0,0.00035616,5]
[405294575,1770955840619,-500.0,0.00035616,5]
[405294576,1770955840629,-3414.87,0.00035616,5]
[405294577,1770955840640,-500.0,0.00035616,5]
[405294578,1770955840651,-500.0,0.00035616,5]
[405294579,1770955840660,-500.0,0.00035616,5]
[405294580,1770955840671,-930.81,0.00035616,5]
[405294581,1770955840681,-475.63622681,0.00035616,5]
[405294582,1770955840690,-500.0,0.00035616,5]
[405294583,1770955840700,-500.0,0.00035616,5]
[405294584,1770955840712,-500.0,0.00035616,5]
[405294585,1770955840722,-7493.35,0.00035616,5]
[405294586,1770955840732,-1831.98,0.00035616,5]
[405294587,1770955840741,-1459.4,0.00035616,2]
[405294588,1770955840750,-500.0,0.00035616,5]
[405294589,1770955840762,-500.0,0.00035616,2]
[405294590,1770955840771,-1482.89,0.00035616,5]
[405294591,1770955840781,-978.31524094,0.00035635,2]
[405294592,1770955840791,-4223.15827034,0.0003588,3]
[405294593,1770955840799,-712.0,0.00035885,11]
[405294594,1770955840808,-1154.33,0.0003589,5]
[405294595,1770955840817,-1248.0,0.0003589,5]
[405294596,1770955840826,-500.0,0.0003589,120]
[405294597,1770955840836,-500.0,0.0003589,5]
[405294598,1770955840845,-657.75,0.0003589,5]
[405294599,1770955840855,-1000.0,0.0003589,2]
[405294600,1770955840864,-500.0,0.0003589,5]
[405294601,1770955840874,-899.91,0.0003589,5]
[405294602,1770955840885,-2067.28,0.0003589,5]
[405294603,1770955840896,-530.52,0.0003589,5]
[405294604,1770955840906,-520.23,0.0003589,5]
[405294605,1770955840915,-1649.59,0.0003589,5]
[405294606,1770955840925,-500.0,0.0003589,5]
[405294607,1770955840934,-500.0,0.0003589,5]
[405294608,1770955840943,-500.0,0.0003589,5]
[405294609,1770955840953,-3414.87,0.0003589,5]
[405294610,1770955840962,-500.0,0.0003589,5]
[405294611,1770955840972,-500.0,0.0003589,5]
[405294612,1770955840981,-500.0,0.0003589,5]
[405294613,1770955840991,-930.81,0.0003589,5]
[405294614,1770955841000,-500.0,0.0003589,5]
[405294615,1770955841009,-500.0,0.0003589,5]
[405294616,1770955841019,-500.0,0.0003589,5]
[405294617,1770955841028,-7493.35,0.0003589,5]
[405294618,1770955841038,-1831.98,0.0003589,5]
[405294619,1770955841048,-1459.4,0.0003589,2]
[405294620,1770955841057,-500.0,0.0003589,5]
[405294621,1770955841067,-500.0,0.0003589,2]
[405294622,1770955841078,-1482.89,0.0003589,5]
[405294623,1770955841087,-1600.0,0.00036,2]
[405294624,1770955841097,-184.0,0.00036043,7]
[405294625,1770955841106,-4223.15827034,0.00036154,3]
[405294626,1770955841116,-1154.33,0.00036164,5]
[405294627,1770955841125,-1248.0,0.00036164,5]
[405294628,1770955841134,-500.0,0.00036164,120]
[405294629,1770955841144,-500.0,0.00036164,5]
[405294630,1770955841153,-657.75,0.00036164,5]
[405294631,1770955841162,-1000.0,0.00036164,2]
[405294632,1770955841172,-500.0,0.00036164,5]
[405294633,1770955841182,-899.91,0.00036164,5]
[405294634,1770955841191,-2067.28,0.00036164,5]
[405294635,1770955841200,-530.52,0.00036164,5]
[405294636,1770955841209,-520.23,0.00036164,5]
[405294637,1770955841218,-1649.59,0.00036164,5]
[405294638,1770955841227,-500.0,0.00036164,5]
[405294639,1770955841236,-500.0,0.00036164,5]
[405294640,1770955841246,-500.0,0.00036164,5]
[405294641,1770955841255,-3414.87,0.00036164,5]
[405294642,1770955841264,-500.0,0.00036164,5]
[405294643,1770955841274,-500.0,0.00036164,5]
[405294644,1770955841288,-500.0,0.00036164,5]
[405294645,1770955841297,-930.81,0.00036164,5]
[405294646,1770955841306,-500.0,0.00036164,5]
[405294647,1770955841316,-500.0,0.00036164,5]
[405294648,1770955841328,-500.0,0.00036164,5]
[405294649,1770955841337,-7493.35,0.00036164,5]
[405294650,1770955841346,-1831.98,0.00036164,5]
[405294651,1770955841355,-1459.4,0.00036164,2]
[405294652,1770955841366,-500.0,0.00036164,5]
[405294653,1770955841375,-600.08936147,0.00036164,2]
[405294654,1770955841384,-1482.89,0.00036164,5]
[405294655,1770955841394,-1800.0,0.000364,5]
[405294656,1770955841405,-1154.33,0.00036438,5]
[405294657,1770955841414,-1248.0,0.00036438,5]
[405294658,1770955841424,-500.0,0.00036438,120]
[405294659,1770955841434,-500.0,0.00036438,5]
[405294660,1770955841444,-510.1591,0.00036438,2]
[405294661,1770955841455,-510.1591,0.00036438,3]
[405294662,1770955841465,-508.0018,0.00036438,4]
[405294663,1770955841475,-657.75,0.00036438,5]
[405294664,1770955841485,-1000.0,0.00036438,2]
[405294665,1770955841494,-500.0,0.00036438,5]
[405294666,1770955841503,-899.91,0.00036438,5]
[405294667,1770955841513,-2067.28,0.00036438,5]
[405294668,1770955841524,-530.52,0.00036438,5]
[405294669,1770955841533,-520.23,0.00036438,5]
[405294670,1770955841542,-1649.59,0.00036438,5]
[405294671,1770955841551,-520.46221318,0.00036438,5]
[405294672,1770955841560,-500.0,0.00036438,5]
[405294673,1770955841569,-211.32576647,0.00036438,5]
[405294674,1770955841579,-3414.87,0.00036438,5]
[405294675,1770955841588,-500.0,0.00036438,5]
[405294676,1770955841597,-500.0,0.00036438,5]
[405294677,1770955841606,-500.0,0.00036438,5]
[405294678,1770955841616,-930.81,0.00036438,5]
[405294679,1770955841625,-500.0,0.00036438,5]
[405294680,1770955841634,-500.0,0.00036438,5]
[405294681,1770955841643,-500.0,0.00036438,5]
[405294682,1770955841652,-7493.35,0.00036438,5]
[405294683,1770955841662,-1831.98,0.00036438,5]
[405294684,1770955841671,-1459.4,0.00036438,2]
[405294685,1770955841682,-500.0,0.00036438,5]
[405294686,1770955841691,-1482.89,0.00036438,5]
[405294687,1770955841700,-184.0,0.00036449,2]
[405294688,1770955841710,-712.0,0.0003646,11]
[405294689,1770955841719,-184.0,0.00036525,2]
[405294690,1770955841729,-2000.0,0.00036603,2]
[405294691,1770955841738,-184.0,0.00036603,120]
[405294692,1770955841750,-184.0,0.00036685,2]
[405294693,1770955841760,-4223.15827034,0.00036702,3]
[405294694,1770955841770,-1154.33,0.00036712,5]
[405294695,1770955841779,-1248.0,0.00036712,5]
[405294696,1770955841791,-500.0,0.00036712,120]
[405294697,1770955841800,-500.0,0.00036712,5]
[405294698,1770955841809,-657.75,0.00036712,5]
[405294699,1770955841816,-1000.0,0.00036712,2]
[405294700,1770955841826,-500.0,0.00036712,5]
[405294701,1770955841834,-899.91,0.00036712,5]
[405294702,1770955841843,-2067.28,0.00036712,5]
[405294703,1770955841851,-530.52,0.00036712,5]
[405294704,1770955841859,-520.23,0.00036712,5]
[405294705,1770955841867,-1649.59,0.00036712,5]
[405294706,1770955841876,-500.0,0.00036712,5]
[405294707,1770955841884,-3414.87,0.00036712,5]
[405294708,1770955841891,-500.0,0.00036712,5]
[405294709,1770955841897,-500.0,0.00036712,5]
[405294710,1770955841906,-500.0,0.00036712,5]
[405294711,1770955841915,-930.81,0.00036712,5]
[405294712,1770955841924,-500.0,0.00036712,5]
[405294713,1770955841934,-500.0,0.00036712,5]
[405294714,1770955841943,-500.0,0.00036712,5]
[405294715,1770955841953,-7493.35,0.00036712,5]
[405294716,1770955841962,-1831.98,0.00036712,5]
[405294717,1770955841971,-1459.4,0.00036712,2]
[405294718,1770955841980,-500.0,0.00036712,5]
[405294719,1770955841990,-1482.89,0.00036712,5]
[405294720,1770955842000,-163.64,0.000368,7]
[405294721,1770955842010,-1600.0,0.000369,5]
[405294722,1770955842020,-250.0,0.00036911,2]
[405294723,1770955842029,-250.0,0.00036911,2]
[405294724,1770955842038,-250.0,0.00036911,2]
[405294725,1770955842048,-250.0,0.00036911,2]
[405294726,1770955842058,-250.0,0.00036911,2]
[405294727,1770955842067,-250.0,0.00036911,2]
[405294728,1770955842077,-500.0,0.00036911,2]
[405294729,1770955842087,-250.0,0.00036911,2]
[405294730,1770955842095,-500.0,0.00036911,2]
[405294731,1770955842104,-250.0,0.00036911,2]
[405294732,1770955842113,-500.0,0.00036911,2]
[405294733,1770955842122,-250.0,0.00036911,2]
[405294734,1770955842131,-500.0,0.00036911,2]
[405294735,1770955842140,-201.93286099,0.00036911,2]
[405294736,1770955842149,-500.0,0.00036911,2]
[405294737,1770955842158,-500.0,0.00036911,2]
[405294738,1770955842166,-250.0,0.00036911,2]
[405294739,1770955842175,-258.12131247,0.00036911,2]
[405294740,1770955842184,-209.40437684,0.00036911,2]
[405294742,1770955842193,-500.0,0.00036911,2]
[405294743,1770955842202,-250.0,0.00036911,2]
[405294744,1770955842211,-500.0,0.00036911,2]
[405294745,1770955842221,-217.15233878,0.00036911,2]
[405294746,1770955842230,-500.0,0.00036911,2]
[405294747,1770955842239,-500.0,0.00036911,2]
[405294748,1770955842249,-225.18697532,0.00036911,2]
[405294749,1770955842258,-500.0,0.00036911,2]
[405294750,1770955842267,-500.0,0.00036911,2]
[405294751,1770955842279,-233.51889341,0.00036911,2]
[405294752,1770955842292,-500.0,0.00036911,2]
[405294753,1770955842301,-500.0,0.00036911,2]
[405294754,1770955842309,-196.41111491,0.00036911,2]
[405294755,1770955842317,-500.0,0.00036911,2]
[405294756,1770955842327,-500.0,0.00036911,2]
[405294757,1770955842336,-500.0,0.00036911,2]
[405294758,1770955842345,-500.0,0.00036911,2]
[405294759,1770955842355,-500.0,0.00036911,2]
[405294760,1770955842364,-500.0,0.00036911,2]
[405294761,1770955842373,-500.0,0.00036911,2]
[405294762,1770955842382,-416.3546925,0.00036911,2]
[405294763,1770955842391,-184.0,0.00036974,7]
[405294764,1770955842400,-4223.15827034,0.00036976,3]
[405294765,1770955842408,-1154.33,0.00036986,5]
[405294766,1770955842418,-1248.0,0.00036986,5]
[405294767,1770955842426,-500.0,0.00036986,120]
[405294768,1770955842435,-500.0,0.00036986,5]
[405294769,1770955842446,-657.75,0.00036986,5]
[405294770,1770955842455,-769.13658102,0.00036986,2]
[405294771,1770955842464,-500.0,0.00036986,5]
[405294772,1770955842474,-899.91,0.00036986,5]
[405294773,1770955842482,-2067.28,0.00036986,5]
[405294774,1770955842492,-530.52,0.00036986,5]
[405294775,1770955842501,-520.23,0.00036986,5]
[405294776,1770955842510,-1649.59,0.00036986,5]
[405294777,1770955842519,-500.0,0.00036986,5]
[405294778,1770955842528,-3414.87,0.00036986,5]
[405294779,1770955842537,-500.0,0.00036986,5]
[405294780,1770955842545,-500.0,0.00036986,5]
[405294781,1770955842554,-311.28092553,0.00036986,5]
[405294782,1770955842563,-930.81,0.00036986,5]
[405294783,1770955842572,-500.0,0.00036986,5]
[405294784,1770955842581,-500.0,0.00036986,5]
[405294785,1770955842591,-500.0,0.00036986,5]
[405294786,1770955842599,-7493.35,0.00036986,5]
[405294787,1770955842607,-1831.98,0.00036986,5]
[405294788,1770955842615,-1459.4,0.00036986,2]
[405294789,1770955842624,-500.0,0.00036986,5]
[405294790,1770955842633,-1482.89,0.00036986,5]
[405294791,1770955842643,-268.22172827,0.0003699,2]
[405294792,1770955842652,-29562.1078924,0.0003699,3]
[405294793,1770955842662,-314.35113183,0.0003699,3]
[405294794,1770955842671,-119258.10296039,0.00037,2]
[405294795,1770955842679,-192885.01134993,0.00037,2]
[405294796,1770955842688,-554.8,0.00037,30]
[405294797,1770955842698,-3005.59,0.00037,14]
[405294798,1770955842707,-487.0,0.00037,2]
[405294799,1770955842716,-839.92,0.00037,2]
[405294800,1770955842725,-978.31524094,0.00037003,2]
[405294801,1770955842734,-720.0,0.00037025,30]
[405294802,1770955842744,-4223.15827034,0.0003725,3]
[405294803,1770955842752,-759.80035623,0.00037258,2]
[405294804,1770955842762,-1154.33,0.0003726,5]
[405294805,1770955842771,-1248.0,0.0003726,5]
[405294806,1770955842780,-500.0,0.0003726,120]
[405294807,1770955842789,-500.0,0.0003726,5]
[405294808,1770955842798,-657.75,0.0003726,5]
[405294809,1770955842807,-500.0,0.0003726,5]
[405294810,1770955842816,-899.91,0.0003726,5]
[405294811,1770955842825,-2067.28,0.0003726,5]
[405294812,1770955842834,-530.52,0.0003726,5]
[405294813,1770955842844,-520.23,0.0003726,5]
[405294814,1770955842853,-1649.59,0.0003726,5]
[405294815,1770955842863,-500.0,0.0003726,5]
[405294816,1770955842872,-3414.87,0.0003726,5]
[405294817,1770955842881,-500.0,0.0003726,5]
[405294818,1770955842890,-500.0,0.0003726,5]
[405294819,1770955842900,-930.81,0.0003726,5]
[405294820,1770955842909,-500.0,0.0003726,5]
[405294821,1770955842919,-500.0,0.0003726,5]
[405294822,1770955842928,-500.0,0.0003726,5]
[405294823,1770955842938,-7493.35,0.0003726,5]
[405294824,1770955842947,-1831.98,0.0003726,5]
[405294825,1770955842963,-1459.4,0.0003726,2]
[405294826,1770955842973,-500.0,0.0003726,5]
[405294827,1770955842982,-1482.89,0.0003726,5]
[405294828,1770955842991,-184.0,0.00037296,2]
[405294829,1770955843000,-523.0,0.0003736,11]
[405294830,1770955843010,-2000.000001,0.000375,30]
[405294831,1770955843019,-10771.615011,0.000375,120]
[405294832,1770955843028,-1154.33,0.00037534,5]
[405294833,1770955843038,-1248.0,0.00037534,5]
[405294834,1770955843047,-500.0,0.00037534,120]
[405294835,1770955843056,-500.0,0.00037534,5]
[405294836,1770955843065,-657.75,0.00037534,5]
[405294837,1770955843075,-500.0,0.00037534,5]
[405294838,1770955843087,-899.91,0.00037534,5]
[405294839,1770955843096,-2067.28,0.00037534,5]
[405294840,1770955843105,-530.52,0.00037534,5]
[405294841,1770955843115,-520.23,0.00037534,5]
[405294842,1770955843127,-1649.59,0.00037534,5]
[405294843,1770955843145,-500.0,0.00037534,5]
[405294844,1770955843165,-3414.87,0.00037534,5]
[405294845,1770955843175,-500.0,0.00037534,5]
[405294846,1770955843185,-500.0,0.00037534,5]
[405294847,1770955843195,-930.81,0.00037534,5]
[405294848,1770955843204,-500.0,0.00037534,5]
[405294849,1770955843214,-500.0,0.00037534,5]
[405294850,1770955843225,-500.0,0.00037534,5]
[405294851,1770955843239,-7493.35,0.00037534,5]
[405294852,1770955843249,-1831.98,0.00037534,5]
[405294853,1770955843262,-1459.4,0.00037534,2]
[405294854,1770955843271,-500.0,0.00037534,5]
[405294855,1770955843286,-1482.89,0.00037534,5]
[405294856,1770955843296,-4223.15827034,0.0003761,3]
[405294857,1770955843306,-18897.26,0.0003762,2]
[405294858,1770955843315,-1442.68136226,0.0003762,2]
[405294859,1770955843326,-1000.0,0.000377,30]
[405294860,1770955843423,-184.0,0.00037761,7]
[405294861,1770955843446,-4223.15827034,0.00037798,3]
[405294862,1770955843456,-1154.33,0.00037808,5]
[405294863,1770955843465,-1248.0,0.00037808,5]
[405294864,1770955843474,-500.0,0.00037808,120]
[405294865,1770955843484,-500.0,0.00037808,5]
[405294866,1770955843493,-657.75,0.00037808,5]
[405294867,1770955843503,-500.0,0.00037808,5]
[405294868,1770955843512,-899.91,0.00037808,5]
[405294869,1770955843522,-2067.28,0.00037808,5]
[405294870,1770955843531,-530.52,0.00037808,5]
[405294871,1770955843540,-520.23,0.00037808,5]
[405294872,1770955843550,-1649.59,0.00037808,5]
[405294873,1770955843559,-500.0,0.00037808,5]
[405294874,1770955843569,-3414.87,0.00037808,5]
[405294875,1770955843578,-500.0,0.00037808,5]
[405294876,1770955843588,-500.0,0.00037808,5]
[405294877,1770955843597,-930.81,0.00037808,5]
[405294878,1770955843606,-500.0,0.00037808,5]
[405294879,1770955843616,-500.0,0.00037808,5]
[405294880,1770955843625,-500.0,0.00037808,5]
[405294881,1770955843635,-7493.35,0.00037808,5]
[405294882,1770955843644,-1831.98,0.00037808,5]
[405294883,1770955843656,-1459.4,0.00037808,2]
[405294884,1770955843665,-500.0,0.00037808,5]
[405294885,1770955843674,-1482.89,0.00037808,5]
[405294886,1770955843683,-27584.45568666,0.00037831,7]
[405294887,1770955843692,-742.81808302,0.00037831,7]
[405294888,1770955843702,-1000.0,0.000379,2]
[405294889,1770955843712,-4223.15827034,0.0003796,3]
[405294890,1770955843722,-27584.45568666,0.00037971,7]
[405294891,1770955843731,-12669.474811,0.0003799,3]
[405294892,1770955843740,-209.56742122,0.0003799,3]
[405294893,1770955843749,-184.0,0.00037991,2]
[405294894,1770955843759,-68359.98565854,0.00038,2]
[405294897,1770955845097,-262.20048631,0.00036911,2]
[405294898,1770955845107,-208.50229484,0.00036913,2]
[405294899,1770955845118,-125.49770516,0.00036913,2]
[405294900,1770955845127,-2325.89116288,0.00038,2]
[405294901,1770955845138,-9718.68720796,0.00038,2]
[405294904,1770955845576,-780.0,0.00035616,5]
[405294905,1770955845586,-11.89703249,0.0003589,5]
[405294906,1770955845789,-552.95131547,0.0003589,5]
[405294912,1770955928876,252.58314908,0.00027397,5]
[405294913,1770955930379,254.35572381,0.00027397,5]
[405295103,1770956252942,224.81208184,0.00013273,2]
[405295111,1770956317731,4229.8011179,0.00030136,120]
[405295114,1770956407697,500.0,0.00013699,2]
[405295115,1770956407729,504.14408874,0.00014247,2]
[405295118,1770956795129,515.84794024,0.00013273,2]
[405295119,1770956850478,-528.0,0.00033736,30]
[405295120,1770956850498,-919.68270491,0.00034906,2]
[405295121,1770956850519,-723.96,0.00035616,5]
[405295122,1770956850539,-281.71555767,0.00035886,2]
[405295124,1770956909886,717.09936539,0.00015,2]
[405295125,1770956948111,-368.32511078,0.00027499,2]
[405295126,1770956948131,-350.32471133,0.000275,2]
[405295127,1770956952125,-809.58933569,0.000275,2]
[405295128,1770956973079,-11226.94314249,0.000275,2]
[405295185,1770957040028,-484.0,0.00033736,30]
[405295187,1770957040038,-489.15762047,0.00035789,2]
[405295189,1770957040047,-91.40341806,0.000358,2]
[405295191,1770957040059,-153.76658194,0.000358,2]
[405295193,1770957040068,-912.13,0.00035886,2]
[405295195,1770957040077,-11582.24551304,0.00035887,2]
[405295229,1770957046146,-369.873983,0.00034542,2]
[405295230,1770957046156,-3795.89458366,0.00035887,2]
[405295231,1770957046167,-472.16643115,0.00035887,2]
[405295232,1770957046179,-81.68906638,0.00035887,2]
[405295233,1770957046189,-581.75,0.00035887,5]
[405295234,1770957046198,-500.0,0.00035887,5]
[405295235,1770957046208,-4683.35,0.00035887,5]
[405295236,1770957046217,-500.0,0.00035887,5]
[405295237,1770957046226,-443.0,0.00035887,30]
[405295238,1770957046236,-500.0,0.00035888,5]
[405295239,1770957046245,-2164.3,0.00035888,5]
[405295240,1770957046255,-500.0,0.00035888,5]
[405295241,1770957046264,-500.0,0.00035888,5]
[405295242,1770957046274,-1144.99,0.00035888,5]
[405295243,1770957046283,-287.44891075,0.00035889,120]
[405295244,1770957046296,-212.55108925,0.00035889,120]
[405295245,1770957046305,-83.48891075,0.00035889,2]
[405295246,1770957046316,-916.51108925,0.00035889,2]
[405295247,1770957046325,-500.0,0.00035889,5]
[405295248,1770957046335,-293.3533915,0.00035889,5]
[405295249,1770957046359,-206.6466085,0.00035889,5]
[405295250,1770957046368,-500.0,0.00035889,5]
[405295251,1770957046377,-404.55519635,0.00035889,5]
[405295252,1770957046387,-500.0,0.00035889,5]
[405295253,1770957046396,-500.0,0.00035889,5]
[405295254,1770957046406,-601.57,0.00035889,5]
[405295255,1770957046420,-1381.93,0.00035889,5]
[405295256,1770957046430,-721.45,0.00035889,5]
[405295257,1770957046439,-500.0,0.00035889,5]
[405295258,1770957046450,-1102.72,0.00035889,5]
[405295259,1770957046459,-693.8,0.00035889,5]
[405295260,1770957046471,-187.07171679,0.00036063,2]
[405295261,1770957046481,-105.08505805,0.0003616,2]
[405295272,1770957145799,150.0,0.0002589,2]
[405295273,1770957154769,-177.0,0.0002789,2]
[405295274,1770957171484,-204.0,0.0002989,2]
[405295278,1770957464273,4694.81,0.00030136,120]
[405295280,1770957614726,500.0,0.00016438,2]
[405295281,1770957614794,1000.0,0.0001726,2]
[405295282,1770957614834,2000.0,0.00018904,2]
[405295283,1770957614889,2002.2736296,0.00019726,2]
[405295284,1770957614940,1500.0,0.00018082,2]
[405295290,1770957940112,-194.78760602,0.00025292,2]
[405295291,1770957940133,-150.0,0.00025547,2]
[405295292,1770957940154,-177.0,0.00027547,2]
[405295293,1770957940177,-127.77148558,0.00030137,30]
[405295294,1770958038088,-645.53772859,0.00030137,30]
[405295295,1770958045101,-1226.65078583,0.00030137,30]
[405295296,1770958045121,-800.0,0.0003128,3]
[405295297,1770958045142,-1000.0,0.00031281,2]
[405295298,1770958045161,-443.97,0.00031281,2]
[405295299,1770958045180,-1219.0,0.00033736,30]
[405295300,1770958045201,-175.35573728,0.00033853,7]
[405295301,1770958045220,-505.62369723,0.00033853,7]
[405295302,1770958045240,-500.0,0.00033853,7]
[405295303,1770958045261,-500.0,0.00033853,7]
[405295304,1770958045281,-500.0,0.00033853,7]
[405295305,1770958045301,-500.0,0.00033853,7]
[405295306,1770958045322,-483.77601866,0.00033853,7]
[405295307,1770958045342,-239.06862314,0.00033853,7]
[405295308,1770958045367,-500.0,0.00033853,7]
[405295309,1770958045386,-193.22984701,0.00033853,7]
[405295310,1770958045406,-2865.1773273,0.00033855,2]
[405295311,1770958045425,-861.8296757,0.00033855,2]
[405295312,1770958045445,-4297.8023944,0.00033855,2]
[405295313,1770958166091,-233.82641006,0.00030137,120]
[405295314,1770958206464,502.05082582,0.00013699,2]
[405295315,1770958216947,500.0,0.00013273,2]
[405295316,1770958217005,500.0,0.00013821,2]
[405295317,1770958220571,515.73504961,0.00013273,2]
[405295336,1770958237927,-914.0,0.00033736,30]
[405295337,1770958237936,-428.01291792,0.00033813,2]
[405295338,1770958237946,-618.11399698,0.00033854,7]
[405295339,1770958237956,-517.71497893,0.00033854,7]
[405295340,1770958237966,-2485.52450282,0.00033855,2]
[405295341,1770958238318,-2689.3698459,0.00033855,2]
[405295349,1770958245967,-16.52223134,0.00033855,2]
[405295354,1770958262643,295.0,0.0003,14]
[405295355,1770958262961,295.0,0.00030411,14]
[405295357,1770958294399,591.11706823,0.00013273,2]
[405295367,1770958789801,500.0,0.00030136,120]
[405295401,1770959155121,-536.16853351,0.00024776,2]
[405295402,1770959155142,-150.0,0.00025026,2]
[405295403,1770959155162,-173.46,0.000251,2]
[405295404,1770959155186,-177.0,0.00027026,2]
[405295405,1770959155207,-204.0,0.00029026,2]
[405295406,1770959155228,-32.65326988,0.0003,14]
[405295407,1770959204550,174.66024175,0.00013273,2]
[405295408,1770959231111,-217.0,0.0003,14]
[405295409,1770959231132,-217.0,0.00030411,14]
[405295410,1770959231154,-61.75137077,0.00031026,2]
[405295411,1770959249105,-169.24862923,0.00031026,2]
[405295412,1770959249124,-217.0,0.00031644,14]
[405295413,1770959249143,-1887.76078278,0.00031766,2]
[405295414,1770959357095,-150.0,0.0002589,2]
[405295415,1770959357116,-294.20234923,0.0002789,2]
[405295416,1770959366146,250.0,0.00021274,2]
[405295580,1770959446170,-136.15923312,0.00031766,2]
[405295581,1770959446179,-186.5981468,0.00032062,2]
[405295582,1770959446189,-132.17469208,0.000323,2]
[405295583,1770959446202,-67.82530792,0.000323,2]
[405295584,1770959446211,-500.0,0.00033,2]
[405295585,1770959446219,-155.0,0.00033,14]
[405295586,1770959446229,-155.0,0.00033151,30]
[405295587,1770959446239,-200.0,0.000333,2]
[405295588,1770959446249,-2562.239938,0.00033372,2]
[405295589,1770959446259,-685.0,0.0003381,30]
[405295590,1770959446268,-4831.94614294,0.00033813,2]
[405295591,1770959446347,-676.03372964,0.00033813,2]
[405295593,1770959591907,307.48,0.000245,2]
[405295596,1770959911030,9145.84,0.0001,2]
[405295597,1770959995571,500.0,0.0003013,120]
[405295599,1770960346133,-177.0,0.00025376,2]
[405295600,1770960346155,-575.98692639,0.00032921,2]
[405295603,1770960441073,-156.0,0.00033,14]
[405295604,1770960441094,-680.70094121,0.00033113,3]
[405295605,1770960448087,-596.46913708,0.00033113,3]
[405295606,1770960453079,-322.82992171,0.00033113,3]
[405295607,1770960453100,-500.0,0.00033114,2]
[405295608,1770960453120,-458.20669802,0.00033114,2]
[405295609,1770960503820,1002.67172983,0.00015,7]
[405295610,1770960508147,571.61780146,0.0002196,10]
[405295611,1770960509375,950.19049231,0.00015,2]
[405295630,1770960569080,-350.32471133,0.000275,2]
[405295649,1770960632357,-780.45035752,0.00033,14]
[405295651,1770960636087,1000.0,0.00031974,30]
[405295655,1770960638429,-5751.51533975,0.00033,14]
[405295656,1770960638439,-500.0,0.00033,2]
[405295657,1770960638448,-156.0,0.00033,14]
[405295658,1770960638459,-160.0,0.00033061,2]
[405295659,1770960638469,-500.0,0.00033113,7]